bitfinex-derivatives/quotes_BTCF0:USTF0_20240903
["timestamp","ask_amount","ask_price","bid_price","bid_amount"]
[1725401563457,0.53350858,57996.0,57995.0,0.0004]
[1725401563661,0.44728358,57996.0,57995.0,0.326627]
[1725401564558,0.00025858,57996.0,57995.0,0.687427]
[1725401565265,0.00025858,57996.0,57995.0,0.82330422]
[1725401565464,0.00025858,57996.0,57995.0,0.69194773]
[1725401569683,0.00025858,57996.0,57995.0,1.80922773]
[1725401570088,0.00025858,57996.0,57995.0,2.02655631]
[1725401571788,0.00025858,57996.0,57995.0,1.89519677]
[1725401572890,0.00025858,57996.0,57995.0,2.02655438]
[1725401573185,0.00025858,57996.0,57995.0,1.89516928]
[1725401575980,0.00025858,57996.0,57995.0,1.80922773]
[1725401576985,0.00025858,57996.0,57995.0,1.89516928]
[1725401577391,0.00025858,57996.0,57995.0,1.80922773]
[1725401577688,0.00025858,57996.0,57995.0,1.20922773]
[1725401578695,0.00025858,57996.0,57995.0,1.34058386]
[1725401578989,0.00025858,57996.0,57995.0,0.69194773]
[1725401579185,0.00025858,57996.0,57995.0,0.82330678]
[1725401580593,0.00025858,57996.0,57995.0,0.82330525]
[1725401582400,0.08648358,57996.0,57995.0,0.49707825]
[1725401582585,0.08648358,57996.0,57995.0,0.0004]
[1725401582586,0.17270858,57996.0,57995.0,0.0004]
[1725401582786,0.25893358,57996.0,57995.0,0.0004]
[1725401583086,0.25893358,57996.0,57995.0,0.05203342]
[1725401583291,1.37621358,57996.0,57995.0,0.0004]
[1725401583690,1.45621358,57996.0,57995.0,0.0004]
[1725401584594,2.17781358,57996.0,57995.0,0.0004]
[1725401584789,2.09781358,57996.0,57995.0,0.0004]
[1725401584989,0.258684,57994.0,57993.0,0.05163342]
[1725401585190,1.16767159,57994.0,57993.0,0.05163342]
[1725401585498,1.08495159,57994.0,57993.0,0.05163342]
[1725401586190,0.172466,57991.0,57990.0,0.00025858]
[1725401586393,0.773666,57991.0,57990.0,0.00025858]
[1725401589490,0.859899,57991.0,57990.0,0.00025858]
[1725401590591,0.91129127,57991.0,57990.0,0.00025858]
[1725401590996,0.859899,57991.0,57990.0,0.00025858]
[1725401591187,0.91128471,57991.0,57990.0,0.00025858]
[1725401591594,0.859899,57991.0,57990.0,0.00025858]
[1725401593995,0.619899,57991.0,57990.0,0.00025858]
[1725401594799,0.619899,57991.0,57990.0,0.37803234]
[1725401594800,0.447433,57991.0,57990.0,0.37803234]
[1725401594997,0.447433,57991.0,57990.0,0.32649258]
[1725401595799,0.447433,57991.0,57990.0,0.3780227]
[1725401596489,0.447433,57991.0,57990.0,0.32649258]
[1725401597201,0.447433,57991.0,57990.0,0.37802527]
[1725401597403,0.086633,57991.0,57990.0,0.37802527]
[1725401597702,0.0004,57991.0,57990.0,1.51252745]
[1725401597898,0.36105858,57996.0,57990.0,1.51252745]
[1725401597899,0.00025858,57996.0,57995.0,0.086227]
[1725401598096,0.0857181,58001.0,58000.0,0.086219]
[1725401598301,0.0857181,58001.0,58000.0,0.69625105]
[1725401598607,0.004,58013.0,58011.0,0.086202]
[1725401598900,0.086192,58019.0,58012.0,0.2988]
[1725401599104,0.3608,58018.0,58014.0,0.05149242]
[1725401599608,0.086196,58016.0,58014.0,0.05149242]
[1725401599797,0.00025858,58021.0,58014.0,0.05149242]
[1725401599998,0.00025858,58021.0,58019.0,0.2404]
[1725401600823,0.00025858,58021.0,58019.0,1.804471]
[1725401601006,0.05137048,58028.0,58019.0,1.804471]
[1725401601007,0.04137048,58028.0,58020.0,0.51708]
[1725401601310,0.04137048,58028.0,58027.0,0.687379]
[1725401601506,0.04137048,58028.0,58027.0,1.804379]
[1725401602602,0.05537048,58028.0,58027.0,1.805379]
[1725401604109,0.05537048,58028.0,58027.0,0.0014]
[1725401605606,0.340178,58028.0,58027.0,0.0014]
[1725401606207,0.100178,58028.0,58027.0,0.0014]
[1725401606719,0.014,58028.0,58027.0,0.0014]
[1725401610797,0.014,58028.0,58027.0,0.0648]
[1725401611402,0.014,58028.0,58027.0,0.4256]
[1725401612212,0.011,58028.0,58027.0,0.4256]
[1725401612805,0.025,58028.0,58027.0,0.4266]
[1725401615717,0.025,58028.0,58027.0,0.512779]
[1725401616620,0.00025858,58033.0,58032.0,0.086172]
[1725401616815,0.00025858,58033.0,58032.0,1.287372]
[1725401617010,0.00025858,58033.0,58032.0,1.804332]
[1725401618007,0.00025858,58033.0,58032.0,1.287372]
[1725401618204,0.00025858,58033.0,58032.0,0.687372]
[1725401619215,0.00025858,58033.0,58032.0,1.805332]
[1725401619421,0.00425858,58033.0,58032.0,1.806332]
[1725401620103,0.00425858,58033.0,58032.0,0.328572]
[1725401620510,0.00425858,58033.0,58032.0,0.2424]
[1725401620910,0.09042858,58033.0,58032.0,0.2424]
[1725401623417,0.17659858,58033.0,58032.0,0.2424]
[1725401623619,0.17659858,58033.0,58032.0,0.0024]
[1725401628118,0.26276858,58033.0,58032.0,0.0024]
[1725401628320,0.62356858,58033.0,58032.0,0.05395682]
[1725401628623,0.62356858,58033.0,58032.0,0.05397864]
[1725401628811,0.62356858,58033.0,58032.0,0.0024]
[1725401629716,0.68786858,58033.0,58032.0,0.0024]
[1725401632414,0.68786858,58033.0,58032.0,0.05402387]
[1725401632616,0.68786858,58033.0,58032.0,0.0024]
[1725401632810,0.68786858,58033.0,58032.0,0.05402476]
[1725401633028,0.68786858,58033.0,58032.0,0.0024]
[1725401633207,0.68786858,58033.0,58032.0,0.05402495]
[1725401633412,0.68786858,58033.0,58032.0,0.0024]
[1725401633613,0.68786858,58033.0,58032.0,0.05402881]
[1725401634327,0.68786858,58033.0,58032.0,0.0024]
[1725401634625,0.68386858,58033.0,58032.0,0.0004]
[1725401634925,0.62356858,58033.0,58032.0,0.0024]
[1725401638225,0.61956858,58033.0,58032.0,0.0014]
[1725401638422,0.62356858,58033.0,58032.0,0.0024]
[1725401639225,0.53739858,58033.0,58032.0,0.0024]
[1725401639826,0.17659858,58033.0,58032.0,0.0024]
[1725401641530,0.17659858,58033.0,58032.0,0.0014]
[1725401641734,0.17259858,58033.0,58032.0,0.0014]
[1725401641925,0.17659858,58033.0,58032.0,0.0024]
[1725401642125,0.17659858,58033.0,58032.0,0.0014]
[1725401642329,0.00425858,58033.0,58032.0,0.174744]
[1725401642526,0.00425858,58033.0,58032.0,0.088572]
[1725401643729,0.00025858,58033.0,58032.0,0.088572]
[1725401644030,0.00425858,58033.0,58032.0,0.088572]
[1725401644739,0.00425858,58033.0,58032.0,0.086572]
[1725401645422,0.00425858,58033.0,58032.0,0.087572]
[1725401645936,0.00425858,58033.0,58032.0,0.150672]
[1725401646527,0.00425858,58033.0,58032.0,0.0645]
[1725401646928,0.09042858,58033.0,58032.0,0.0645]
[1725401647221,0.09042858,58033.0,58032.0,0.0655]
[1725401647744,0.09042858,58033.0,58032.0,0.0645]
[1725401648036,0.50276858,58033.0,58032.0,0.07123866]
[1725401648221,0.50276858,58033.0,58032.0,0.0024]
[1725401648428,0.50276858,58033.0,58032.0,0.0014]
[1725401648631,0.50276858,58033.0,58032.0,0.0034]
[1725401649923,0.50276858,58033.0,58032.0,0.0014]
[1725401650233,0.50276858,58033.0,58032.0,0.0024]
[1725401650536,0.50276858,58033.0,58032.0,0.0014]
[1725401650731,0.50276858,58033.0,58032.0,0.0024]
[1725401651737,1.61972858,58033.0,58032.0,0.0024]
[1725401652335,1.70582914,58033.0,58032.0,0.0024]
[1725401653638,1.61972858,58033.0,58032.0,0.0024]
[1725401654829,1.98052858,58033.0,58032.0,0.0024]
[1725401655327,2.06669858,58033.0,58032.0,1e-06]
[1725401655534,2.16669858,58033.0,58032.0,1e-06]
[1725401655832,2.06669858,58033.0,58032.0,1e-06]
[1725401656032,2.17669858,58033.0,58032.0,1e-06]
[1725401670132,0.62356858,58033.0,58032.0,1e-06]
[1725401670338,0.62356858,58033.0,58032.0,0.240001]
[1725401670339,0.45122858,58033.0,58032.0,0.240001]
[1725401670844,0.09042858,58033.0,58032.0,0.240001]
[1725401671432,0.09042858,58033.0,58032.0,0.326173]
[1725401672747,0.09042858,58033.0,58032.0,0.240001]
[1725401673735,0.09042858,58033.0,58032.0,0.326173]
[1725401673946,0.00425858,58033.0,58032.0,0.326173]
[1725401674948,0.00425858,58033.0,58032.0,0.39490828]
[1725401675336,0.00425858,58033.0,58032.0,0.39491618]
[1725401675636,0.00425858,58033.0,58032.0,0.326173]
[1725401676037,0.00425858,58033.0,58032.0,0.39491401]
[1725401676239,0.00425858,58033.0,58032.0,0.39491422]
[1725401676439,0.00425858,58033.0,58032.0,0.326173]
[1725401677641,0.00425858,58033.0,58032.0,0.33060064]
[1725401680044,0.00525858,58033.0,58032.0,0.33060064]
[1725401680550,0.00625858,58033.0,58032.0,0.33059964]
[1725401682049,0.00125858,58033.0,58032.0,0.33059964]
[1725401682234,0.00625858,58033.0,58032.0,0.33059964]
[1725401683146,0.00625858,58033.0,58032.0,0.39930796]
[1725401683449,0.00525858,58033.0,58032.0,0.39930796]
[1725401683644,0.00625858,58033.0,58032.0,0.39931017]
[1725401684045,0.00525858,58033.0,58032.0,0.39931017]
[1725401684247,0.00625858,58033.0,58032.0,0.39931017]
[1725401685343,0.00125858,58033.0,58032.0,0.39931017]
[1725401685543,0.00625858,58033.0,58032.0,0.39931017]
[1725401686053,0.09242858,58033.0,58032.0,0.15931017]
[1725401686543,0.09242858,58033.0,58032.0,0.00442764]
[1725401686742,0.086173,58032.0,58030.0,0.518374]
[1725401687150,0.086173,58032.0,58031.0,0.086173]
[1725401687548,0.085173,58032.0,58031.0,0.086173]
[1725401688146,0.086173,58032.0,58031.0,0.086173]
[1725401688952,0.091173,58032.0,58031.0,0.086173]
[1725401689443,0.091173,58032.0,58031.0,0.15489052]
[1725401689646,0.091173,58032.0,58031.0,0.086173]
[1725401689845,0.092173,58032.0,58031.0,0.086173]
[1725401690050,0.087173,58032.0,58031.0,0.087173]
[1725401690250,0.092173,58032.0,58031.0,0.087173]
[1725401690440,0.092173,58032.0,58031.0,0.002]
[1725401691353,0.178345,58032.0,58031.0,0.002]
[1725401691857,0.173345,58032.0,58031.0,0.001]
[1725401692156,0.178345,58032.0,58031.0,0.002]
[1725401698047,1.742277,58032.0,58031.0,0.002]
[1725401699162,1.82833495,58032.0,58031.0,0.002]
[1725401699357,1.742277,58032.0,58031.0,0.002]
[1725401700963,0.539145,58032.0,58031.0,0.002]
[1725401701552,1.142277,58032.0,58031.0,0.002]
[1725401702157,0.258534,58028.0,58027.0,0.05162603]
[1725401702358,0.859334,58028.0,58027.0,0.05162603]
[1725401702557,0.859734,58028.0,58027.0,0.05162603]
[1725401703156,2.064912,58028.0,58027.0,3e-08]
[1725401703360,2.139912,58028.0,58027.0,3e-08]
[1725401703558,1.899912,58028.0,58027.0,3e-08]
[1725401704374,1.74832442,58028.0,58027.0,3e-08]
[1725401704757,1.14832442,58028.0,58027.0,3e-08]
[1725401705256,1.74832442,58028.0,58027.0,3e-08]
[1725401705457,1.14832442,58028.0,58027.0,3e-08]
[1725401705657,1.74832442,58028.0,58027.0,3e-08]
[1725401706266,1.14832442,58028.0,58027.0,3e-08]
[1725401706458,1.74832442,58028.0,58027.0,3e-08]
[1725401706659,1.14832442,58028.0,58027.0,3e-08]
[1725401707359,1.74832442,58028.0,58027.0,3e-08]
[1725401707969,1.14832442,58028.0,58027.0,3e-08]
[1725401708162,1.74832442,58028.0,58027.0,3e-08]
[1725401708358,1.14832442,58028.0,58027.0,3e-08]
[1725401708771,1.74832442,58028.0,58027.0,3e-08]
[1725401708960,1.82832442,58028.0,58027.0,3e-08]
[1725401709162,1.82832442,58028.0,58017.0,0.004]
[1725401709163,0.258579,58018.0,58017.0,0.004]
[1725401709356,0.172388,58017.0,58016.0,0.05155461]
[1725401709555,0.447982,58017.0,58016.0,0.05155461]
[1725401709762,0.964662,58017.0,58016.0,0.05155461]
[1725401710057,1.204662,58017.0,58016.0,0.05155461]
[1725401710262,1.203662,58017.0,58016.0,0.05155461]
[1725401711772,1.209662,58017.0,58016.0,0.05255461]
[1725401711972,0.692582,58017.0,58016.0,0.05255461]
[1725401712464,0.697582,58017.0,58016.0,0.05255461]
[1725401714170,0.70219448,58017.0,58016.0,0.001]
[1725401714374,0.77078335,58017.0,58016.0,0.001]
[1725401714668,0.70219448,58017.0,58016.0,0.001]
[1725401715060,0.77078799,58017.0,58016.0,0.001]
[1725401715260,0.258603,58012.0,58011.0,0.00025858]
[1725401715465,0.859803,58012.0,58011.0,0.00025858]
[1725401715664,0.533602,58012.0,58011.0,0.00025858]
[1725401716563,0.534602,58012.0,58011.0,0.00025858]
[1725401716759,0.534602,58012.0,58011.0,0.00125858]
[1725401722070,0.774602,58012.0,58011.0,0.00125858]
[1725401722665,0.0014,58012.0,58011.0,0.84458158]
[1725401722865,0.05145514,58016.0,58011.0,1.71917858]
[1725401722866,0.086197,58016.0,58011.0,1.71917858]
[1725401723064,0.086196,58016.0,58015.0,0.2404]
[1725401723271,0.258588,58016.0,58015.0,0.0004]
[1725401724272,0.262588,58016.0,58015.0,0.0004]
[1725401724670,0.263588,58016.0,58015.0,0.0004]
[1725401725268,0.091196,58016.0,58015.0,0.086597]
[1725401725477,0.095196,58016.0,58015.0,0.086597]
[1725401726074,0.095196,58016.0,58015.0,0.152397]
[1725401727878,0.095196,58016.0,58015.0,0.0662]
[1725401730976,0.009,58016.0,58015.0,0.392397]
[1725401732186,0.009,58016.0,58015.0,0.252397]
[1725401733184,0.009,58016.0,58015.0,0.338594]
[1725401733782,0.005,58016.0,58015.0,0.338594]
[1725401733978,0.007,58016.0,58015.0,0.478594]
[1725401734786,0.002,58016.0,58015.0,0.392397]
[1725401734987,0.006,58016.0,58015.0,0.392397]
[1725401735680,0.001,58016.0,58015.0,0.392397]
[1725401735880,0.002,58016.0,58015.0,0.392397]
[1725401736088,0.001,58016.0,58015.0,0.393397]
[1725401737192,0.001,58016.0,58015.0,0.392397]
[1725401737488,0.08644858,58020.0,58019.0,0.086191]
[1725401737682,0.08644858,58020.0,58019.0,0.326591]
[1725401738993,0.17963858,58020.0,58019.0,0.05297361]
[1725401739179,0.31742382,58020.0,58019.0,0.0014]
[1725401739499,0.27182858,58020.0,58019.0,0.0014]
[1725401743791,0.27642996,58020.0,58019.0,0.0014]
[1725401744390,0.27182858,58020.0,58019.0,0.0014]
[1725401745094,0.32343148,58020.0,58019.0,0.05298642]
[1725401745289,0.27182858,58020.0,58019.0,0.05298642]
[1725401745494,0.27182858,58020.0,58019.0,0.0014]
[1725401745794,0.32343825,58020.0,58019.0,0.0014]
[1725401745990,0.27182858,58020.0,58019.0,0.0014]
[1725401746184,0.27182858,58020.0,58019.0,0.05299263]
[1725401746694,0.27182858,58020.0,58019.0,0.0014]
[1725401747096,0.151064,58020.0,58019.0,0.087591]
[1725401747290,0.09944858,58020.0,58019.0,0.087591]
[1725401748296,0.09944858,58020.0,58019.0,0.15638904]
[1725401748681,0.01325858,58020.0,58019.0,1.27346904]
[1725401749489,0.01325858,58020.0,58019.0,0.67346904]
[1725401749800,0.01325858,58020.0,58019.0,0.67799381]
[1725401750796,0.09944858,58020.0,58019.0,0.67799381]
[1725401751300,0.151064,58020.0,58019.0,0.60919577]
[1725401752091,0.064874,58020.0,58019.0,0.60919577]
[1725401753100,0.064874,58020.0,58019.0,0.09211577]
[1725401754001,0.01325858,58020.0,58019.0,0.09211577]
[1725401754201,0.064874,58020.0,58019.0,0.09211577]
[1725401755895,0.064874,58020.0,58019.0,0.087591]
[1725401756095,0.09944858,58020.0,58019.0,0.087591]
[1725401762001,0.09944858,58020.0,58019.0,0.187591]
[1725401766204,0.01325858,58020.0,58019.0,0.187591]
[1725401766415,0.086183,58025.0,58019.0,0.61848]
[1725401766416,0.12048636,58025.0,58019.0,0.61848]
[1725401766709,0.20667894,58030.0,58029.0,0.086176]
[1725401766899,0.15501433,58030.0,58029.0,0.547376]
[1725401767104,0.15501433,58030.0,58029.0,0.186576]
[1725401767997,0.16201433,58030.0,58029.0,0.327576]
[1725401769000,0.07589037,58030.0,58029.0,0.327576]
[1725401769396,0.007,58030.0,58029.0,0.327576]
[1725401770102,0.3678,58030.0,58029.0,0.327576]
[1725401770310,0.3678,58030.0,58029.0,0.0024]
[1725401770311,0.54815,58030.0,58029.0,0.0024]
[1725401771012,0.5527471,58030.0,58029.0,0.0024]
[1725401773114,0.4665721,58030.0,58029.0,0.0024]
[1725401773306,0.461975,58030.0,58029.0,0.0024]
[1725401773911,0.54815,58030.0,58029.0,0.0024]
[1725401776008,1.151285,58030.0,58029.0,0.0024]
[1725401776308,1.271085,58030.0,58029.0,0.0024]
[1725401776510,1.941085,58030.0,58029.0,0.0024]
[1725401778020,1.991085,58030.0,58029.0,0.0024]
[1725401780112,2.01902602,58030.0,58029.0,0.0024]
[1725401780516,1.41902602,58030.0,58029.0,0.0024]
[1725401780917,1.41902625,58030.0,58029.0,0.0024]
[1725401781109,1.391085,58030.0,58029.0,0.0024]
[1725401781312,1.41902594,58030.0,58029.0,0.0024]
[1725401781506,1.391085,58030.0,58029.0,0.0024]
[1725401782110,1.41902589,58030.0,58029.0,0.0024]
[1725401782312,1.41902587,58030.0,58029.0,0.0024]
[1725401782520,1.391085,58030.0,58029.0,0.0024]
[1725401783215,0.90206597,58030.0,58029.0,0.0024]
[1725401783417,0.90206559,58030.0,58029.0,0.0024]
[1725401783722,0.874125,58030.0,58029.0,0.0024]
[1725401783922,0.96015433,58030.0,58029.0,0.0024]
[1725401784125,0.874125,58030.0,58029.0,0.0024]
[1725401784522,0.9601509,58030.0,58029.0,0.0024]
[1725401784725,0.96015288,58030.0,58029.0,0.0024]
[1725401784918,0.874125,58030.0,58029.0,0.0024]
[1725401785116,0.54815,58030.0,58029.0,0.0024]
[1725401786933,0.54115,58030.0,58029.0,0.0014]
[1725401787131,0.54315,58030.0,58029.0,0.0024]
[1725401787419,0.54215,58030.0,58029.0,0.0024]
[1725401789722,0.628325,58030.0,58029.0,0.0024]
[1725401790024,0.628325,58030.0,58024.0,0.00065858]
[1725401790025,0.257546,58025.0,58024.0,0.00065858]
[1725401790324,0.858746,58025.0,58024.0,0.00065858]
[1725401790630,0.857746,58025.0,58024.0,0.00065858]
[1725401791127,0.855746,58025.0,58024.0,0.00065858]
[1725401791321,0.855746,58025.0,58024.0,0.00025858]
[1725401791831,0.856746,58025.0,58024.0,0.00125858]
[1725401792826,0.865746,58025.0,58024.0,0.00225858]
[1725401794532,0.8701789,58025.0,58024.0,0.00225858]
[1725401799733,2.0734009,58025.0,58024.0,5.8e-07]
[1725401799941,0.258609,58011.0,58010.0,0.0899594]
[1725401800230,1.950609,58011.0,58010.0,3.6e-07]
[1725401800437,0.25863,58006.0,58005.0,4.7e-07]
[1725401800634,0.17245,57996.0,57995.0,0.0591]
[1725401800837,0.17245,57996.0,57992.0,0.0607]
[1725401800838,0.17246,57993.0,57992.0,0.0607]
[1725401801035,0.41286,57993.0,57992.0,0.0607]
[1725401801242,0.41046,57993.0,57992.0,0.0607]
[1725401801431,0.40646,57993.0,57992.0,0.0607]
[1725401802043,0.40946,57993.0,57992.0,0.0607]
[1725401802235,0.086233,57991.0,57990.0,0.00025858]
[1725401802429,0.533666,57991.0,57990.0,0.00025858]
[1725401803735,0.534666,57991.0,57990.0,0.00025858]
[1725401804136,0.536666,57991.0,57990.0,0.00025858]
[1725401807432,0.086243,57984.0,57983.0,0.1405721]
[1725401807634,0.086246,57982.0,57981.0,0.0594]
[1725401810738,0.086246,57982.0,57981.0,0.0374]
[1725401812844,0.447046,57982.0,57981.0,0.0374]
[1725401813733,0.533292,57982.0,57981.0,0.0374]
[1725401814050,0.172498,57980.0,57979.0,0.1206]
[1725401814231,0.172498,57980.0,57979.0,0.0618]
[1725401814232,0.498747,57980.0,57979.0,0.0618]
[1725401814433,0.258762,57977.0,57976.0,0.00025858]
[1725401814641,0.538762,57977.0,57976.0,0.00025858]
[1725401815042,0.498762,57977.0,57976.0,0.00025858]
[1725401817742,0.50333692,57977.0,57976.0,0.00025858]
[1725401822648,0.41708292,57977.0,57976.0,0.00025858]
[1725401824248,0.41708292,57977.0,57976.0,0.00025858]
[1725401826260,0.086254,57977.0,57976.0,0.00025858]
[1725401826464,0.3608,57980.0,57979.0,0.086251]
[1725401826664,0.447049,57980.0,57979.0,0.086251]
[1725401827551,0.3608,57980.0,57979.0,0.086251]
[1725401830258,0.3608,57980.0,57979.0,0.929942]
[1725401830563,0.3608,57980.0,57979.0,0.93445374]
[1725401830758,0.3608,57980.0,57979.0,0.84820274]
[1725401830955,0.3608,57980.0,57979.0,0.33076274]
[1725401831358,0.05124216,57984.0,57979.0,1.44820274]
[1725401831558,0.00025858,57987.0,57986.0,0.08624]
[1725401831763,0.00025858,57987.0,57982.0,0.086245]
[1725401831764,0.24025858,57987.0,57982.0,0.086245]
[1725401831969,0.6008,57984.0,57983.0,0.143445]
[1725401832165,0.086242,57985.0,57984.0,0.086243]
[1725401832366,0.00025858,57987.0,57986.0,0.08624]
[1725401832567,0.00025858,57987.0,57986.0,1.2036]
[1725401834277,0.00025858,57987.0,57986.0,1.28984]
[1725401834865,0.00025858,57987.0,57986.0,1.2036]
[1725401837876,0.00025858,57987.0,57986.0,1.20808862]
[1725401838975,0.00105858,57987.0,57986.0,1.20808862]
[1725401839887,0.00105858,57987.0,57986.0,0.60808862]
[1725401840276,0.08729758,57987.0,57986.0,0.60808862]
[1725401841392,0.08729758,57987.0,57986.0,1.20808862]
[1725401841590,0.00105858,57987.0,57986.0,1.20808862]
[1725401847183,0.00105858,57987.0,57986.0,1.29432862]
[1725401848094,0.00105858,57987.0,57986.0,1.38056862]
[1725401848595,0.00105858,57987.0,57986.0,1.29432862]
[1725401850104,0.00105858,57987.0,57986.0,1.65512862]
[1725401850394,0.00105858,57987.0,57986.0,1.56888862]
[1725401850601,0.00105858,57987.0,57986.0,0.09072862]
[1725401850801,0.08729758,57987.0,57986.0,0.00448862]
[1725401850985,0.08624,57986.0,57985.0,0.24]
[1725401851190,0.08704,57986.0,57985.0,0.24]
[1725401851695,0.08704,57986.0,57985.0,0.326242]
[1725401852594,0.08704,57986.0,57985.0,0.33080062]
[1725401852899,0.08704,57986.0,57985.0,0.24455862]
[1725401857300,0.08704,57986.0,57985.0,0.33080062]
[1725401859497,0.08704,57986.0,57985.0,0.46218692]
[1725401863600,0.0008,57986.0,57985.0,1.66578892]
[1725401864203,0.0008,57986.0,57985.0,1.75203092]
[1725401864399,0.00025858,57987.0,57986.0,0.25872]
[1725401864600,0.00025858,57987.0,57986.0,0.77608]
[1725401864909,0.00025858,57987.0,57986.0,1.37608]
[1725401867610,0.00025858,57987.0,57986.0,1.50744841]
[1725401871519,0.00025858,57987.0,57986.0,1.42120841]
[1725401872019,0.05167527,57996.0,57995.0,0.172454]
[1725401872216,0.004,58007.0,58004.0,0.086213]
[1725401872414,0.08621,58007.0,58001.0,0.3608]
[1725401872714,0.08621,58007.0,58006.0,0.24]
[1725401879825,0.08621,58007.0,58006.0,0.32621]
[1725401880023,0.0579,58008.0,58007.0,0.086209]
[1725401881526,0.0579,58008.0,58006.0,0.24]
[1725401881726,0.0579,58008.0,58004.0,0.00439345]
[1725401881727,0.086212,58005.0,58004.0,0.00439345]
[1725401881931,0.086612,58005.0,58003.0,0.326214]
[1725401882222,0.0004,58004.0,58003.0,0.326214]
[1725401882428,0.086213,58004.0,58003.0,0.326214]
[1725401883932,0.086213,58004.0,58002.0,0.09076465]
[1725401884134,0.0004,58003.0,58002.0,0.326216]
[1725401885737,0.086216,58002.0,58001.0,0.06900749]
[1725401885915,0.447416,58002.0,58001.0,0.06900749]
[1725401886226,0.505516,58002.0,58001.0,0.06900749]
[1725401886922,0.591732,58002.0,58001.0,0.06900749]
[1725401887723,0.591732,58002.0,58001.0,0.00025858]
[1725401889631,0.677948,58002.0,58001.0,0.00025858]
[1725401890529,1.795188,58002.0,58001.0,0.00025858]
[1725401890934,0.677948,58002.0,58001.0,0.00025858]
[1725401891316,0.591732,58002.0,58001.0,0.24025858]
[1725401891523,0.447416,58002.0,58001.0,0.32647658]
[1725401893235,0.447416,58002.0,58001.0,0.24025858]
[1725401894532,0.086616,58002.0,58001.0,0.24025858]
[1725401895436,0.086616,58002.0,58001.0,0.32647658]
[1725401896134,0.0004,58002.0,58001.0,0.32647658]
[1725401896523,0.0004,58002.0,58001.0,0.45782815]
[1725401897434,0.0004,58002.0,58001.0,0.54404615]
[1725401897635,0.0004,58002.0,58001.0,2.02208615]
[1725401897830,0.0004,58007.0,58006.0,0.17242]
[1725401898028,0.0004,58007.0,58006.0,1.14457157]
[1725401898232,0.0004,58007.0,58006.0,1.54407157]
[1725401898933,0.00025858,58012.0,58011.0,0.086203]
[1725401899132,0.00025858,58012.0,58011.0,0.81835457]
[1725401900533,0.00025858,58012.0,58011.0,0.77295718]
[1725401900734,0.00025858,58012.0,58011.0,0.9042756]
[1725401901331,0.00025858,58012.0,58011.0,0.77295718]
[1725401904943,0.00025858,58012.0,58011.0,0.77754549]
[1725401910237,0.00025858,58012.0,58011.0,0.86374849]
[1725401910753,0.00025858,58012.0,58011.0,1.98086849]
[1725401910939,0.00025858,58012.0,58011.0,2.06707149]
[1725401911135,0.00025858,58012.0,58011.0,1.98111731]
[1725401911352,0.00025858,58012.0,58011.0,1.89491431]
[1725401912345,0.00025858,58012.0,58011.0,1.80871131]
[1725401912545,0.00025858,58012.0,58011.0,0.33079131]
[1725401913244,0.00025858,58012.0,58011.0,0.69159131]
[1725401917451,0.00025858,58012.0,58011.0,0.77779431]
[1725401917762,0.00025858,58012.0,58011.0,0.69159131]
[1725401917952,0.00025858,58012.0,58011.0,0.55159131]
[1725401918459,0.00025858,58012.0,58011.0,0.63779431]
[1725401918962,0.00025858,58012.0,58011.0,0.55159131]
[1725401919652,0.00025858,58012.0,58011.0,0.63743121]
[1725401919847,0.00025858,58012.0,58011.0,0.72363421]
[1725401920051,0.00025858,58012.0,58011.0,0.85494875]
[1725401920665,0.00025858,58012.0,58011.0,0.76910885]
[1725401921858,0.00025858,58012.0,58011.0,0.76911608]
[1725401922052,0.00025858,58012.0,58011.0,0.63779431]
[1725401922449,0.00025858,58012.0,58011.0,0.76911466]
[1725401924553,0.00025858,58012.0,58011.0,0.68291166]
[1725401925354,0.00025858,58012.0,58011.0,0.58291166]
[1725401925556,0.00025858,58012.0,58011.0,0.68291166]
[1725401927568,0.00025858,58012.0,58011.0,0.84274919]
[1725401927765,0.00025858,58012.0,58011.0,0.68291091]
[1725401928064,0.00025858,58012.0,58011.0,0.84275215]
[1725401929258,0.00025858,58012.0,58011.0,0.84274377]
[1725401929663,0.00025858,58012.0,58011.0,1.44606677]
[1725401929865,0.07284711,58021.0,58020.0,0.08619]
[1725401930165,0.07284711,58021.0,58020.0,0.3175096]
[1725401930166,0.06884711,58021.0,58020.0,0.3175096]
[1725401932156,0.086186,58023.0,58020.0,0.3175096]
[1725401932355,0.086186,58023.0,58021.0,0.1313196]
[1725401932659,0.086186,58023.0,58022.0,0.1313196]
[1725401933059,0.0587,58025.0,58022.0,0.1313196]
[1725401933264,0.0587,58025.0,58024.0,0.1]
[1725401934657,0.144882,58025.0,58024.0,0.1]
[1725401934867,0.0587,58025.0,58024.0,0.186184]
[1725401935771,0.00025858,58026.0,58025.0,0.086182]
[1725401938376,0.06888388,58028.0,58027.0,0.172358]
[1725401938672,0.06888388,58028.0,58027.0,0.186179]
[1725401939870,0.10331476,58039.0,58035.0,0.086166]
[1725401940075,0.09531476,58039.0,58035.0,0.1]
[1725401940263,0.3608,58040.0,58038.0,0.1]
[1725401941859,0.44696,58040.0,58038.0,0.1]
[1725401942673,0.086161,58039.0,58038.0,0.1]
[1725401944766,0.3608,58040.0,58035.0,0.086167]
[1725401944967,0.3608,58040.0,58038.0,0.1]
[1725401945272,0.086161,58039.0,58038.0,0.1]
[1725401949472,0.086161,58039.0,58038.0,0.10444819]
[1725401950574,0.086161,58039.0,58038.0,0.19061119]
[1725401951381,0.3608,58040.0,58039.0,0.086161]
[1725401951590,0.086145,58050.0,58039.0,0.3608]
[1725401951591,0.086148,58049.0,58039.0,0.3608]
[1725401951882,0.086148,58049.0,58048.0,0.4608]
[1725401953475,0.086148,58049.0,58048.0,0.51224595]
[1725401954279,0.086148,58049.0,58048.0,0.51264595]
[1725401954677,0.086148,58049.0,58048.0,0.4612]
[1725401956178,0.0611,58050.0,58049.0,0.086147]
[1725401956382,0.086143,58052.0,58049.0,0.086547]
[1725401956687,0.086143,58052.0,58051.0,0.1]
[1725401957080,0.086138,58055.0,58051.0,0.1]
[1725401957387,0.086138,58055.0,58054.0,0.4612]
[1725401958891,0.086133,58059.0,58054.0,0.51261428]